fUSD/lending_fUSD_20260126
["ID","MTS","AMOUNT","RATE_DAILY","PERIOD"]
[403596387,1769400646311,-500.0,0.00016438,2]
[403596388,1769400646322,-500.0,0.00016438,2]
[403596389,1769400646331,-500.0,0.00016438,2]
[403596390,1769400646341,-500.0,0.00016438,2]
[403596391,1769400646353,-500.0,0.00016438,2]
[403596392,1769400646362,-500.0,0.00016438,2]
[403596393,1769400646372,-500.0,0.00016438,2]
[403596394,1769400646382,-500.0,0.00016438,2]
[403596396,1769400646393,-502.44355098,0.00016438,2]
[403596398,1769400646403,-500.0,0.00016438,2]
[403596400,1769400646412,-500.0,0.00016438,2]
[403596402,1769400646423,-500.0,0.00016438,2]
[403596403,1769400646432,-500.0,0.00016438,2]
[403596404,1769400646442,-500.0,0.00016438,2]
[403596405,1769400646451,-500.0,0.00016438,2]
[403596406,1769400646461,-500.0,0.00016438,2]
[403596407,1769400646471,-500.0,0.00016438,2]
[403596408,1769400646480,-500.0,0.00016438,2]
[403596409,1769400646490,-508.74925148,0.00016438,2]
[403596410,1769400646499,-500.0,0.00016438,2]
[403596411,1769400646508,-2995.8455248,0.00016438,2]
[403596412,1769400646518,-577.82,0.00016438,2]
[403596413,1769400646527,-500.0,0.00016438,2]
[403596414,1769400646537,-382.58568082,0.00016438,2]
[403596415,1769400646546,-1310.44,0.00016438,2]
[403596416,1769400646556,-500.0,0.00016438,2]
[403596417,1769400646566,-508.31114663,0.00016438,2]
[403596418,1769400646575,-500.0,0.00016438,2]
[403596419,1769400646585,-500.0,0.00016438,2]
[403596420,1769400646594,-506.2733798,0.00016438,2]
[403596421,1769400646603,-500.0,0.00016438,2]
[403596422,1769400646612,-587.40082473,0.00016438,2]
[403596423,1769400646621,-500.0,0.00016438,2]
[403596424,1769400646630,-500.0,0.00016438,2]
[403596425,1769400646639,-501.53042326,0.00016438,2]
[403596426,1769400646649,-500.0,0.00016438,2]
[403596427,1769400646658,-500.0,0.00016438,2]
[403596428,1769400646667,-500.0,0.00016438,2]
[403596429,1769400646676,-500.0,0.00016438,2]
[403596430,1769400646686,-500.0,0.00016438,2]
[403596431,1769400646695,-500.0,0.00016438,2]
[403596432,1769400646704,-500.0,0.00016438,2]
[403596433,1769400646714,-500.0,0.00016438,2]
[403596434,1769400646723,-500.0,0.00016438,2]
[403596435,1769400646732,-500.0,0.00016438,2]
[403596436,1769400646742,-602.61759578,0.00016438,2]
[403596437,1769400646751,-500.0,0.00016438,2]
[403596438,1769400646760,-500.0,0.00016438,2]
[403596439,1769400646769,-500.0,0.00016438,2]
[403596440,1769400646778,-500.0,0.00016438,2]
[403596441,1769400646788,-500.0,0.00016438,2]
[403596442,1769400646797,-500.0,0.00016438,2]
[403596443,1769400646806,-500.0,0.00016438,2]
[403596444,1769400646815,-500.0,0.00016438,2]
[403596445,1769400646825,-500.0,0.00016438,2]
[403596446,1769400646834,-500.0,0.00016438,2]
[403596447,1769400646843,-500.0,0.00016438,2]
[403596448,1769400646852,-500.0,0.00016438,2]
[403596449,1769400646862,-500.0,0.00016438,2]
[403596450,1769400646871,-536.27698222,0.00016438,2]
[403596451,1769400646881,-500.0,0.00016438,2]
[403596452,1769400646891,-500.0,0.00016438,2]
[403596453,1769400646900,-500.0,0.00016438,2]
[403596454,1769400646909,-500.0,0.00016438,2]
[403596455,1769400646918,-500.0,0.00016438,2]
[403596456,1769400646928,-500.0,0.00016438,2]
[403596457,1769400646937,-379.75697753,0.00016438,2]
[403596458,1769400646947,-500.0,0.00016438,2]
[403596459,1769400646955,-500.0,0.00016438,2]
[403596460,1769400646965,-500.0,0.00016438,2]
[403596461,1769400646975,-500.0,0.00016438,2]
[403596462,1769400646984,-500.0,0.00016438,2]
[403596463,1769400646993,-509.91327378,0.00016438,2]
[403596464,1769400647003,-500.0,0.00016438,2]
[403596465,1769400647012,-227.76625588,0.00016438,2]
[403596466,1769400647022,-566.71899808,0.00016438,2]
[403596467,1769400647031,-500.0,0.00016438,2]
[403596468,1769400647039,-500.0,0.00016438,2]
[403596469,1769400647048,-500.0,0.00016438,2]
[403596470,1769400647057,-500.0,0.00016438,2]
[403596471,1769400647067,-500.0,0.00016438,2]
[403596472,1769400647076,-560.19988514,0.00016438,2]
[403596473,1769400647085,-505.95113251,0.00016438,2]
[403596474,1769400647094,-528.18272676,0.00016438,2]
[403596475,1769400647103,-500.0,0.00016438,2]
[403596476,1769400647112,-500.0,0.00016438,2]
[403596477,1769400647121,-500.0,0.00016438,2]
[403596478,1769400647130,-500.0,0.00016438,2]
[403596479,1769400647139,-500.0,0.00016438,2]
[403596480,1769400647148,-616.3757133,0.00016438,2]
[403596481,1769400647157,-500.0,0.00016438,2]
[403596482,1769400647167,-500.0,0.00016438,2]
[403596483,1769400647176,-500.0,0.00016438,2]
[403596484,1769400647186,-500.0,0.00016438,2]
[403596485,1769400647196,-500.0,0.00016438,2]
[403596486,1769400647205,-500.0,0.00016438,2]
[403596487,1769400647218,-500.0,0.00016438,2]
[403596488,1769400647227,-500.0,0.00016438,2]
[403596489,1769400647239,-500.0,0.00016438,2]
[403596490,1769400647249,-500.0,0.00016438,2]
[403596491,1769400647259,-500.0,0.00016438,2]
[403596492,1769400647268,-500.0,0.00016438,2]
[403596493,1769400647278,-500.0,0.00016438,2]
[403596494,1769400647288,-500.0,0.00016438,2]
[403596495,1769400647298,-500.0,0.00016438,2]
[403596496,1769400647309,-500.0,0.00016438,2]
[403596497,1769400647319,-500.0,0.00016438,2]
[403596498,1769400647329,-500.0,0.00016438,2]
[403596499,1769400647338,-500.0,0.00016438,2]
[403596500,1769400647349,-500.0,0.00016438,2]
[403596501,1769400647361,-500.0,0.00016438,2]
[403596502,1769400647370,-500.0,0.00016438,2]
[403596503,1769400647379,-500.0,0.00016438,2]
[403596504,1769400647390,-500.0,0.00016438,2]
[403596505,1769400647400,-500.0,0.00016438,2]
[403596506,1769400647409,-500.0,0.00016438,2]
[403596507,1769400647419,-500.0,0.00016438,2]
[403596508,1769400647429,-362.59870863,0.00016438,2]
[403596509,1769400647438,-500.0,0.00016438,2]
[403596510,1769400647448,-500.0,0.00016438,2]
[403596511,1769400647458,-500.0,0.00016438,2]
[403596512,1769400647467,-500.0,0.00016438,2]
[403596513,1769400647476,-500.0,0.00016438,2]
[403596514,1769400647487,-500.0,0.00016438,2]
[403596515,1769400647496,-500.0,0.00016438,2]
[403596516,1769400647506,-500.0,0.00016438,2]
[403596517,1769400647516,-511.28231716,0.00016438,2]
[403596518,1769400647526,-503.35903801,0.00016438,2]
[403596519,1769400647535,-500.0,0.00016438,2]
[403596520,1769400647545,-500.0,0.00016438,2]
[403596521,1769400647555,-282.6978196,0.00016438,2]
[403596522,1769400647628,-217.3021804,0.00016438,2]
[403596523,1769400647637,-70.70888967,0.00016438,2]
[403596524,1769400647701,-429.22884342,0.00016438,2]
[403596525,1769400647784,-0.06226691,0.00016438,2]
[403596526,1769400647794,-500.0,0.00016438,2]
[403596527,1769400647804,-500.0,0.00016438,2]
[403596528,1769400647814,-500.0,0.00016438,2]
[403596529,1769400647823,-500.0,0.00016438,2]
[403596530,1769400647833,-500.0,0.00016438,2]
[403596531,1769400647843,-500.0,0.00016438,2]
[403596532,1769400647852,-500.0,0.00016438,2]
[403596533,1769400647861,-166.90958987,0.00016438,2]
[403596534,1769400647871,-500.0,0.00016438,2]
[403596535,1769400647880,-500.0,0.00016438,2]
[403596536,1769400647890,-502.84471334,0.00016438,2]
[403596537,1769400647900,-516.43656762,0.00016438,2]
[403596538,1769400647909,-500.0,0.00016438,2]
[403596539,1769400647919,-500.0,0.00016438,2]
[403596540,1769400647928,-504.63847468,0.00016438,2]
[403596541,1769400647938,-588.85606797,0.00016438,2]
[403596542,1769400647947,-500.0,0.00016438,2]
[403596543,1769400647957,-500.0,0.00016438,2]
[403596544,1769400647966,-500.0,0.00016438,2]
[403596545,1769400647976,-500.0,0.00016438,2]
[403596546,1769400647985,-500.0,0.00016438,2]
[403596547,1769400647995,-500.0,0.00016438,2]
[403596548,1769400648005,-500.0,0.00016438,2]
[403596549,1769400648016,-500.0,0.00016438,2]
[403596550,1769400648026,-500.0,0.00016438,2]
[403596551,1769400648035,-500.0,0.00016438,2]
[403596552,1769400648045,-492.0,0.00016438,2]
[403596553,1769400648054,-500.0,0.00016438,2]
[403596554,1769400648063,-500.0,0.00016438,2]
[403596555,1769400648073,-502.18650957,0.00016438,2]
[403596556,1769400648083,-500.0,0.00016438,2]
[403596557,1769400648093,-500.0,0.00016438,2]
[403596558,1769400648103,-500.0,0.00016438,2]
[403596559,1769400648112,-500.0,0.00016438,2]
[403596560,1769400648121,-570.81652281,0.00016438,2]
[403596561,1769400648130,-500.0,0.00016438,2]
[403596562,1769400648142,-500.0,0.00016438,2]
[403596563,1769400648151,-500.0,0.00016438,2]
[403596564,1769400648161,-500.0,0.00016438,2]
[403596565,1769400648170,-500.0,0.00016438,2]
[403596566,1769400648180,-500.0,0.00016438,2]
[403596567,1769400648190,-500.0,0.00016438,2]
[403596568,1769400648199,-500.0,0.00016438,2]
[403596569,1769400648208,-500.0,0.00016438,2]
[403596570,1769400648219,-500.0,0.00016438,2]
[403596571,1769400648227,-500.0,0.00016438,2]
[403596572,1769400648238,-503.29716777,0.00016438,2]
[403596573,1769400648248,-500.64697019,0.00016438,2]
[403596574,1769400648258,-500.0,0.00016438,2]
[403596575,1769400648268,-500.0,0.00016438,2]
[403596576,1769400648278,-500.0,0.00016438,2]
[403596577,1769400648364,-500.0,0.00016438,2]
[403596578,1769400648374,-208.32898706,0.00016438,2]
[403596579,1769400648393,-291.67101294,0.00016438,2]
[403596580,1769400648403,-500.0,0.00016438,2]
[403596581,1769400648412,-500.0,0.00016438,2]
[403596582,1769400648422,-500.0,0.00016438,2]
[403596583,1769400648431,-500.0,0.00016438,2]
[403596584,1769400648441,-500.0,0.00016438,2]
[403596585,1769400648450,-500.0,0.00016438,2]
[403596586,1769400648459,-500.0,0.00016438,2]
[403596587,1769400648468,-72.43482107,0.00016438,2]
[403596588,1769400648482,-427.56517893,0.00016438,2]
[403596589,1769400648492,-173.93597008,0.00016438,2]
[403596590,1769400648504,-254.35801595,0.00016438,2]
[403596591,1769400648515,-71.70601397,0.00016438,2]
[403596592,1769400648526,-446.70408566,0.00016438,2]
[403596593,1769400648537,-53.29591434,0.00016438,2]
[403596594,1769400648547,-500.0,0.00016438,2]
[403596595,1769400648555,-29.13957436,0.00016438,2]
[403596596,1769400648571,-270.00005,0.00016438,2]
[403596597,1769400648583,-200.86037564,0.00016438,2]
[403596598,1769400648592,-135.51294876,0.00016438,2]
[403596599,1769400648603,-364.48705124,0.00016438,2]
[403596600,1769400648612,-500.0,0.00016438,2]
[403596601,1769400648622,-500.0,0.00016438,2]
[403596602,1769400648631,-500.0,0.00016438,2]
[403596603,1769400648640,-500.0,0.00016438,2]
[403596604,1769400648649,-500.0,0.00016438,2]
[403596605,1769400648658,-500.0,0.00016438,2]
[403596606,1769400648667,-500.0,0.00016438,2]
[403596607,1769400648677,-500.0,0.00016438,2]
[403596608,1769400648686,-500.0,0.00016438,2]
[403596609,1769400648695,-500.0,0.00016438,2]
[403596610,1769400648706,-500.0,0.00016438,2]
[403596611,1769400648716,-500.0,0.00016438,2]
[403596612,1769400648726,-500.0,0.00016438,2]
[403596613,1769400648735,-500.0,0.00016438,2]
[403596614,1769400648743,-500.0,0.00016438,2]
[403596615,1769400648752,-238.76165106,0.00016438,2]
[403596616,1769400649274,1140.0,0.00014,6]
[403596617,1769400650481,-261.23834894,0.00016438,2]
[403596618,1769400650491,-113.13156041,0.00016438,2]
[403596619,1769400650515,-386.86843959,0.00016438,2]
[403596620,1769400650524,-500.0,0.00016438,2]
[403596621,1769400650534,-503.20370215,0.00016438,2]
[403596622,1769400650543,-214.68459816,0.00016438,2]
[403596623,1769400650557,-500.0,0.00016438,2]
[403596624,1769400650568,-500.0,0.00016438,2]
[403596625,1769400650578,-76.9534905,0.00016438,2]
[403596626,1769400651136,-482.38454744,0.00016438,2]
[403596627,1769400651146,-500.0,0.00016438,2]
[403596628,1769400651157,-362.82474679,0.00016438,2]
[403596629,1769400651167,-500.0,0.00016438,2]
[403596630,1769400651176,-500.0,0.00016438,2]
[403596631,1769400651186,-500.0,0.00016438,2]
[403596632,1769400651196,-500.0,0.00016438,2]
[403596633,1769400651206,-500.0,0.00016438,2]
[403596634,1769400651215,-500.0,0.00016438,2]
[403596635,1769400651225,-500.0,0.00016438,2]
[403596636,1769400651234,-584.40045443,0.00016438,2]
[403596637,1769400651244,-500.0,0.00016438,2]
[403596638,1769400651253,-500.0,0.00016438,2]
[403596639,1769400651263,-557.27706378,0.00016438,2]
[403596640,1769400651274,-500.0,0.00016438,2]
[403596641,1769400651283,-67.59324083,0.00016438,2]
[403596642,1769400815236,500.0,0.00012742,2]
[403596643,1769401271352,-867.15,0.00012742,2]
[403596644,1769401279574,-609.40044653,0.00014016,2]
[403596645,1769401469873,-291.0,0.00014389,2]
[403596646,1769401469893,-300.0,0.00014389,2]
[403596647,1769401469913,-233.0,0.00014389,2]
[403596648,1769401469932,-300.0,0.00014389,2]
[403596649,1769401469952,-500.0,0.0001439,2]
[403596650,1769401469975,-345.00416082,0.0001439,2]
[403596651,1769401469995,-500.0,0.0001439,2]
[403596652,1769401470016,-500.0,0.0001439,2]
[403596653,1769401470038,-500.0,0.0001439,2]
[403596654,1769401470061,-500.0,0.0001439,2]
[403596655,1769401470084,-151.0,0.00014396,2]
[403596656,1769401470105,-79.99583918,0.00014397,2]
[403596667,1769401831759,-151.0,0.00014296,2]
[403596669,1769401831768,-578.51283028,0.00014298,2]
[403596671,1769401831779,-495.26222895,0.00014298,2]
[403596673,1769401831792,-126.22494077,0.00014298,2]
[403596674,1769401831801,-131.65102892,0.00014298,2]
[403596675,1769401831814,-18.34897108,0.00014298,2]
[403596676,1769401831823,-1154.06952605,0.00014299,2]
[403596677,1769401831862,-1168.18354245,0.00014299,2]
[403596678,1769401831874,-1059.01094474,0.00014299,2]
[403596679,1769401831940,-221395.49408676,0.00014299,2]
[403596680,1769401831949,-6176.1724,0.00014299,2]
[403596681,1769401831958,-500.0,0.00014398,2]
[403596682,1769401831967,-500.0,0.00014398,2]
[403596683,1769401831977,-500.0,0.00014398,2]
[403596684,1769401831986,-384.55121278,0.00014398,2]
[403596685,1769401831996,-500.0,0.00014398,2]
[403596686,1769401832005,-500.0,0.00014398,2]
[403596687,1769401832014,-500.0,0.00014398,2]
[403596688,1769401832024,-500.0,0.00014398,2]
[403596689,1769401832033,-500.0,0.00014398,2]
[403596690,1769401832042,-251.79578969,0.00014398,2]
[403596691,1769401832051,-178.74915856,0.00014758,2]
[403596692,1769401832064,-1034.48785907,0.00014758,2]
[403596693,1769401832097,-259.39015822,0.00014758,2]
[403596701,1769401832157,-605.71259571,0.00014758,2]
[403596703,1769401832167,-449.66614174,0.00014758,2]
[403596768,1769401837882,-276.06862981,0.00014758,2]
[403596769,1769401837892,-440.0,0.00014901,2]
[403596770,1769401837901,-2999.16021433,0.00014921,2]
[403596781,1769401840013,-438.8,0.00014921,2]
[403596782,1769401840024,-768.91717118,0.00014921,2]
[403596783,1769401840035,-381.6231553,0.00014921,2]
[403596784,1769401840046,-432.81938665,0.00014921,2]
[403596785,1769401840076,-6394.21007254,0.00014921,2]
[403596786,1769401840086,-189.94439612,0.00014977,2]
[403596787,1769401840095,-322.6107,0.0001498,2]
[403596788,1769401840104,-151.0,0.0001498,2]
[403596789,1769401840113,-854.2589148,0.0001498,2]
[403596790,1769401840124,-151.0,0.0001498,2]
[403596791,1769401840135,-151.0,0.0001498,2]
[403596792,1769401840145,-151.0,0.0001498,2]
[403596793,1769401840155,-151.0,0.0001498,2]
[403596794,1769401840164,-151.0,0.0001498,2]
[403596795,1769401840173,-151.0,0.0001498,2]
[403596796,1769401840182,-151.0,0.0001498,2]
[403596797,1769401840191,-174.61919141,0.0001498,2]
[403596798,1769401840200,-151.0,0.0001498,2]
[403596799,1769401840209,-151.0,0.0001498,2]
[403596800,1769401840218,-151.0,0.0001498,2]
[403596801,1769401840227,-721.12765535,0.0001498,2]
[403596802,1769401840237,-578.20924308,0.0001498,2]
[403596803,1769401840245,-3000.0,0.0001498,2]
[403596804,1769401840255,-298.09541604,0.0001498,2]
[403596805,1769401840264,-3000.0,0.0001498,2]
[403596806,1769401840273,-3000.0,0.0001498,2]
[403596807,1769401840282,-1836.87079953,0.0001498,2]
[403596808,1769401840292,-2767.05,0.00014985,2]
[403596809,1769401840301,-246.42,0.00014987,2]
[403596810,1769401840311,-191.68,0.00015016,2]
[403596811,1769401840321,-2804.07454305,0.00015107,2]
[403596812,1769401840330,-259.02535919,0.0001523,2]
[403596813,1769401840343,-500.0,0.0001523,2]
[403596814,1769401840352,-676.14,0.00015423,2]
[403596815,1769401840362,-151.0,0.0001544,2]
[403596816,1769401840371,-676.14,0.00015447,2]
[403596817,1769401840380,-2804.07454305,0.00015456,2]
[403596818,1769401840389,-676.14,0.00015471,2]
[403596819,1769401840399,-179.93,0.00015478,2]
[403596820,1769401840408,-172.18,0.00015478,2]
[403596822,1769401840418,-676.14,0.00015496,2]
[403596823,1769401840427,-676.14,0.0001552,2]
[403596824,1769401840440,-885.86649465,0.00015528,2]
[403596825,1769401840449,-181.08010149,0.00015528,2]
[403596826,1769401840459,-676.14,0.00015545,2]
[403596827,1769401840468,-676.14,0.00015569,2]
[403596828,1769401840478,-179.93,0.00015578,2]
[403596829,1769401840486,-359.86,0.00015578,2]
[403596830,1769401840496,-172.18,0.00015578,2]
[403596831,1769401840505,-172.18,0.00015578,2]
[403596832,1769401840515,-676.14,0.00015593,2]
[403596833,1769401840524,-676.14,0.00015618,2]
[403596834,1769401840535,-676.14,0.00015642,2]
[403596835,1769401840546,-676.14,0.00015666,2]
[403596836,1769401840555,-200.0,0.00015682,2]
[403596837,1769401840564,-676.14,0.00015691,2]
[403596838,1769401840574,-676.14,0.00015715,2]
[403596839,1769401840583,-1680.0,0.00015728,2]
[403596840,1769401840592,-627.97,0.00015738,2]
[403596841,1769401840601,-676.14,0.00015739,2]
[403596842,1769401840610,-676.14,0.00015764,2]
[403596843,1769401840619,-191.68,0.00015767,2]
[403596844,1769401840628,-179.93,0.00015778,2]
[403596845,1769401840638,-676.14,0.00015788,2]
[403596846,1769401840647,-2804.07454305,0.00015805,2]
[403596847,1769401840657,-166.6,0.00015811,2]
[403596848,1769401840666,-676.14,0.00015812,2]
[403596849,1769401840675,-29683.4579766,0.00015821,2]
[403596850,1769401840684,-676.14,0.00015837,2]
[403596851,1769401840693,-676.14,0.00015861,2]
[403596852,1769401840702,-172.18,0.00015878,2]
[403596853,1769401840711,-676.14,0.00015886,2]
[403596854,1769401840724,-5610.0,0.00015901,2]
[403596855,1769401840733,-5610.0,0.00015919,2]
[403596856,1769401840742,-1000.0,0.00015926,2]
[403596857,1769401840752,-1000.0,0.00015926,2]
[403596858,1769401840763,-359.86,0.00015978,2]
[403596859,1769401840772,-456.95,0.00015991,2]
[403596860,1769401840782,-558.8,0.00015991,2]
[403596861,1769401840792,-558.8,0.00015991,2]
[403596862,1769401840801,-830.17,0.00015991,2]
[403596863,1769401840814,-558.8,0.00015991,2]
[403596864,1769401840824,-344.36,0.00015995,2]
[403596865,1769401840833,-172.18,0.00015995,2]
[403596866,1769401840843,-172.18,0.00015995,2]
[403596867,1769401840852,-5610.0,0.00015997,2]
[403596868,1769401840862,-1662.0,0.00016,2]
[403596869,1769401840871,-2508.0,0.00016,2]
[403596870,1769401840881,-200.0,0.00016007,2]
[403596871,1769401840891,-5610.0,0.00016041,2]
[403596872,1769401840900,-200.0,0.00016046,2]
[403596873,1769401840910,-918.64355495,0.00016076,2]
[403596874,1769401840919,-187.78006525,0.00016076,2]
[403596875,1769401840929,-1791.4323347,0.00016109,2]
[403596876,1769401840939,-2804.07454305,0.00016154,2]
[403596877,1769401840949,-5610.0,0.00016165,2]
[403596878,1769401840959,-200.0,0.0001618,2]
[403596879,1769401840968,-5000.00299678,0.000162,5]
[403596880,1769401840978,-2271.0,0.00016237,2]
[403596881,1769401840987,-2000.0,0.0001627,2]
[403596882,1769401840997,-2000.0,0.0001627,2]
[403596883,1769401841006,-2000.0,0.0001627,2]
[403596884,1769401841015,-917.0,0.000163,2]
[403596885,1769401841025,-200.0,0.00016306,2]
[403596886,1769401841034,-200.0,0.00016307,2]
[403596887,1769401841044,-2080.69057563,0.00016319,2]
[403596888,1769401841053,-175.29750633,0.00016338,2]
[403596889,1769401841062,-5408.0168,0.00016338,2]
[403596890,1769401841071,-1000.0,0.00016338,2]
[403596891,1769401841081,-923.22863654,0.00016338,2]
[403596892,1769401841090,-334.5472959,0.00016349,2]
[403596893,1769401841099,-468.53,0.00016356,2]
[403596894,1769401841109,-393.35,0.00016356,2]
[403596895,1769401841119,-5610.0,0.0001639,2]
[403596896,1769401841129,-1086.0,0.000164,2]
[403596897,1769401841139,-1086.0,0.000164,2]
[403596898,1769401841149,-1086.0,0.000164,2]
[403596899,1769401841158,-1086.0,0.000164,2]
[403596900,1769401841168,-982.0,0.000164,2]
[403596901,1769401841177,-928.0,0.000164,2]
[403596902,1769401841186,-1661.959,0.00016419,2]
[403596903,1769401841200,-187.326,0.00016419,2]
[403596904,1769401841209,-200.0,0.00016425,2]
[403596905,1769401841220,-520.13473548,0.00016427,2]
[403596906,1769401841230,-154.63102483,0.00016428,2]
[403596907,1769401841240,-173.53,0.00016437,2]
[403596908,1769401841250,-10392.0,0.00016438,2]
[403596909,1769401841259,-150.0,0.00016438,2]
[403596910,1769401841270,-212.52491661,0.00016438,2]
[403596911,1769401841279,-151.0,0.00016438,2]
[403596912,1769401841289,-25535.5883354,0.00016438,2]
[403596913,1769401841299,-502.12279745,0.00016438,2]
[403596914,1769401841309,-550.76845828,0.00016438,2]
[403596915,1769401841319,-500.0,0.00016438,2]
[403596916,1769401841329,-522.38601852,0.00016438,2]
[403596917,1769401841338,-500.0,0.00016438,2]
[403596918,1769401841348,-522.84528094,0.00016438,2]
[403596919,1769401841358,-500.0,0.00016438,2]
[403596920,1769401841368,-517.53197336,0.00016438,2]
[403596921,1769401841377,-500.0,0.00016438,2]
[403596922,1769401841387,-500.0,0.00016438,2]
[403596923,1769401841397,-500.0,0.00016438,2]
[403596924,1769401841406,-500.0,0.00016438,2]
[403596925,1769401841415,-500.0,0.00016438,2]
[403596926,1769401841425,-501.32563192,0.00016438,2]
[403596927,1769401841434,-500.0,0.00016438,2]
[403596928,1769401841444,-151.0,0.00016438,2]
[403596929,1769401841453,-333.47608257,0.00016438,2]
[403596930,1769401841463,-200.0,0.00016438,2]
[403596931,1769401841472,-506.756421,0.00016438,2]
[403596932,1769401841481,-586.6720742,0.00016438,2]
[403596933,1769401841491,-500.30706646,0.00016438,2]
[403596934,1769401841501,-500.0,0.00016438,2]
[403596935,1769401841516,-567.6660355,0.00016438,2]
[403596936,1769401841525,-500.0,0.00016438,2]
[403596937,1769401841535,-500.0,0.00016438,2]
[403596938,1769401841544,-500.0,0.00016438,2]
[403596939,1769401841554,-500.0,0.00016438,2]
[403596940,1769401841563,-516.29860768,0.00016438,2]
[403596941,1769401841572,-500.0,0.00016438,2]
[403596942,1769401841587,-501.72122921,0.00016438,2]
[403596943,1769401841596,-585.42855224,0.00016438,2]
[403596944,1769401841606,-552.64526227,0.00016438,2]
[403596945,1769401841616,-500.0,0.00016438,2]
[403596946,1769401841625,-501.67465248,0.00016438,2]
[403596947,1769401841634,-3258.7687891,0.00016438,2]
[403596948,1769401841644,-438.38069532,0.00016438,2]
[403596949,1769401841653,-511.78389527,0.00016438,2]
[403596950,1769401841663,-500.0,0.00016438,2]
[403596951,1769401841673,-500.0,0.00016438,2]
[403596952,1769401841682,-500.0,0.00016438,2]
[403596953,1769401841691,-187.58734848,0.00016438,2]
[403596954,1769401841701,-500.0,0.00016438,2]
[403596955,1769401841711,-317.64653468,0.00016438,2]
[403596956,1769401841724,-242.50630853,0.00016438,2]
[403596957,1769401841733,-500.0,0.00016438,2]
[403596958,1769401841743,-236.44396484,0.00016438,2]
[403596959,1769401841752,-500.0,0.00016438,2]
[403596960,1769401841763,-500.0,0.00016438,2]
[403596961,1769401841772,-145921.1564929,0.00016438,2]
[403596962,1769401841781,-500.0,0.00016438,2]
[403596963,1769401841793,-500.0,0.00016438,2]
[403596964,1769401841803,-504.72457689,0.00016438,2]
[403596965,1769401841812,-503.17394361,0.00016438,2]
[403596966,1769401841822,-500.0,0.00016438,2]
[403596967,1769401841832,-500.0,0.00016438,2]
[403596968,1769401841841,-501.06440588,0.00016438,2]
[403596969,1769401841851,-500.0,0.00016438,2]
[403596970,1769401841860,-502.63571508,0.00016438,2]
[403596971,1769401841870,-500.0,0.00016438,2]
[403596972,1769401841879,-500.0,0.00016438,2]
[403596973,1769401841892,-500.0,0.00016438,2]
[403596974,1769401841901,-500.0,0.00016438,2]
[403596975,1769401841911,-202.17396481,0.00016438,2]
[403596976,1769401841920,-449.86533864,0.00016438,2]
[403596977,1769401841929,-500.0,0.00016438,2]
[403596978,1769401841939,-500.0,0.00016438,2]
[403596979,1769401841948,-500.0,0.00016438,2]
[403596980,1769401841958,-500.0,0.00016438,2]
[403596981,1769401841970,-1266.0,0.00016438,2]
[403596982,1769401841981,-1266.0,0.00016438,2]
[403596983,1769401841990,-1266.0,0.00016438,2]
[403596984,1769401841999,-1266.0,0.00016438,2]
[403596985,1769401842008,-1266.0,0.00016438,2]
[403596986,1769401842018,-500.0,0.00016438,2]